[Event "HUN-ch Rapid 2019"]
[Site "Ajka"]
[Date "2019.07.20"]
[Round "9.12"]
[White "Csonka, Balazs"]
[Black "Bohus, Adam"]
[Result "0-1"]
[ECO "D20"]
[WhiteElo "2472"]
[BlackElo "2219"]
[Annotator "ChessBase"]
[PlyCount "160"]
[EventDate "2019.07.18"]
[EventType "swiss"]
[EventCountry "HUN"]
[SourceTitle "playchess.com"]
[Source "ChessBase"]
[SourceQuality "1"]
[TimeControl "1200+5"]

1. d4 {[%emt 0:00:01]} d5 {[%emt 0:00:02]} 2. c4 {[%emt 0:00:02]} dxc4 {[%emt 0:00:11]} 3. e4 {[%emt 0:00:13]} b5 {[%emt 0:00:46]} 4. a4 {[%emt 0:00:02]} c6 {[%emt 0:00:02]} 5. axb5 {[%emt 0:00:04]} cxb5 {[%emt 0:00:01]} 6. Nc3 {[%emt 0:00:06]} a6 {[%emt 0:00:02]} 7. Nxb5 {[%emt 0:00:04]} axb5 {[%emt 0:00:02]} 8. Rxa8 {[%emt 0:00:02]} Bb7 {[%emt 0:00:01]} 9. Ra1 {[%emt 0:00:10]} e6 {[%emt 0:00:06]} 10. Ne2 {[%emt 0:01:01]} Bxe4 {[%emt 0:03:13]} 11. Nc3 {[%emt 0:00:01]} Bb4 {[%emt 0:00:04]} 12. Qg4 {[%emt 0:05:45]} Nf6 {[%emt 0:04:51]} 13. Qg3 {[%emt 0:10:24]} Nc6 {[%emt 0:02:46]} 14. Be3 {[%emt 0:00:01]} Nxd4 {[%emt 0:03:34]} 15. Bxd4 {[%emt 0:00:05]} Qxd4 {[%emt 0:00:02]} 16. Qb8+ {[%emt 0:02:31]} Ke7 {[%emt 0:00:01]} 17. Ra7+ {[%emt 0:00:16]} Nd7 {[%emt 0:00:02]} 18. Rxd7+ {[%emt 0:00:08]} Qxd7 {[%emt 0:01:11]} 19. Qxh8 {[%emt 0:00:02]} Qd4 {[%emt 0:03:25]} 20. f3 {[%emt 0:00:01]} Qe3+ {[%emt 0:00:01]} 21. Kd1 {[%emt 0:00:03]} Qd4+ {[%emt 0:00:21]} 22. Ke1 {[%emt 0:00:09]} Qe3+ {[%emt 0:00:22]} 23. Kd1 {[%emt 0:00:01]} Bxf3+ {[%emt 0:00:25]} 24. gxf3 {[%emt 0:00:01]} Qxf3+ {[%emt 0:00:01]} 25. Ke1 {[%emt 0:00:10]} Qe4+ {[%emt 0:00:19]} 26. Kd2 {[%emt 0:00:33]} Qxh1 {[%emt 0:00:01]} 27. Be2 {[%emt 0:00:07]} Qa1 {[%emt 0:00:15]} 28. Kc2 {[%emt 0:00:09]} Bxc3 {[%emt 0:00:02]} 29. bxc3 {[%emt 0:00:01]} Qa2+ {[%emt 0:00:01]} 30. Kd1 {[%emt 0:00:01]} Qb1+ {[%emt 0:00:04]} 31. Kd2 {[%emt 0:00:01]} Qb2+ {[%emt 0:00:01]} 32. Kd1 {[%emt 0:00:00]} Qb1+ {[%emt 0:00:07]} 33. Kd2 {[%emt 0:00:01]} Qb2+ {[%emt 0:00:01]} 34. Kd1 {[%emt 0:00:01]} Qxc3 {[%emt 0:00:03]} 35. Qxh7 {[%emt 0:00:02]} Qd4+ {[%emt 0:00:07]} 36. Ke1 {[%emt 0:00:07]} b4 {[%emt 0:00:06]} 37. Qc2 {[%emt 0:00:20]} Qg1+ {[%emt 0:00:08]} 38. Bf1 {[%emt 0:00:11]} Qe3+ {[%emt 0:00:08]} 39. Be2 {[%emt 0:00:04]} c3 {[%emt 0:00:11]} 40. Qb3 {[%emt 0:00:12]} Qg1+ {[%emt 0:00:03]} 41. Bf1 {[%emt 0:00:02]} Qe3+ {[%emt 0:00:02]} 42. Be2 {[%emt 0:00:01]} Qc1+ {[%emt 0:00:03]} 43. Bd1 {[%emt 0:00:10]} Qd2+ {[%emt 0:00:03]} 44. Kf1 {[%emt 0:00:02]} Qd3+ {[%emt 0:00:07]} 45. Ke1 {[%emt 0:00:07]} Qe4+ {[%emt 0:00:03]} 46. Kf2 {[%emt 0:00:09]} f5 {[%emt 0:00:07]} 47. Bc2 {[%emt 0:00:04]} Qd4+ {[%emt 0:00:03]} 48. Ke2 {[%emt 0:00:06]} Qd2+ {[%emt 0:00:03]} 49. Kf1 {[%emt 0:00:00]} Qf4+ {[%emt 0:00:12]} 50. Ke1 {[%emt 0:00:06]} Qh4+ {[%emt 0:00:07]} 51. Kf1 {[%emt 0:00:05]} Qh3+ {[%emt 0:00:06]} 52. Ke1 {[%emt 0:00:08]} Qe3+ {[%emt 0:00:03]} 53. Kf1 {[%emt 0:00:01]} Qf4+ {[%emt 0:00:05]} 54. Ke1 {[%emt 0:00:04]} Kf6 {[%emt 0:00:03]} 55. h3 {[%emt 0:00:10]} Qe3+ {[%emt 0:00:04]} 56. Kf1 {[%emt 0:00:02]} Qxh3+ {[%emt 0:00:01]} 57. Kg1 {[%emt 0:00:01]} Qe3+ {[%emt 0:00:04]} 58. Kh1 {[%emt 0:00:06]} Qf3+ {[%emt 0:00:10]} 59. Kg1 {[%emt 0:00:00]} Qg4+ {[%emt 0:00:02]} 60. Kh2 {[%emt 0:00:06]} Qf4+ {[%emt 0:00:02]} 61. Kg1 {[%emt 0:00:02]} g5 {[%emt 0:00:02]} 62. Qa4 {[%emt 0:00:13]} Qd4+ {[%emt 0:00:05]} 63. Kg2 {[%emt 0:00:08]} g4 {[%emt 0:00:08]} 64. Bb3 {[%emt 0:00:00]} Qd2+ {[%emt 0:00:07]} 65. Kg3 {[%emt 0:00:08]} Kg5 {[%emt 0:00:10]} 66. Qa5 {[%emt 0:00:04]} Qf4+ {[%emt 0:00:09]} 67. Kg2 {[%emt 0:00:01]} Qf3+ {[%emt 0:00:02]} 68. Kg1 {[%emt 0:00:07]} Qe3+ {[%emt 0:00:02]} 69. Kg2 {[%emt 0:00:09]} Qd2+ {[%emt 0:00:04]} 70. Kg3 {[%emt 0:00:08]} Qd3+ {[%emt 0:00:09]} 71. Kg2 {[%emt 0:00:05]} c2 {[%emt 0:00:10]} 72. Bxc2 {[%emt 0:00:02]} Qxc2+ {[%emt 0:00:02]} 73. Kg1 {[%emt 0:00:06]} Qc1+ {[%emt 0:00:04]} 74. Kf2 {[%emt 0:00:02]} Qc2+ {[%emt 0:00:02]} 75. Ke1 {[%emt 0:00:06]} Qc3+ {[%emt 0:00:05]} 76. Kf2 {[%emt 0:00:01]} Qd4+ {[%emt 0:00:02]} 77. Ke2 {[%emt 0:00:09]} b3 {[%emt 0:00:09]} 78. Qa3 {[%emt 0:00:08]} Qe4+ {[%emt 0:00:05]} 79. Kf2 {[%emt 0:00:03]} Qc2+ {[%emt 0:00:03]} 80. Kg1 {[%emt 0:00:01]} Qb1+ {[%emt 0:00:03]} 0-1

[Event "HUN-ch Rapid 2019"]
[Site "Ajka"]
[Date "2019.07.20"]
[Round "9.13"]
[White "Farago, Ivan"]
[Black "Karacsonyi, Gellert"]
[Result "0-1"]
[ECO "D37"]
[WhiteElo "2350"]
[BlackElo "2315"]
[Annotator "NA"]
[PlyCount "94"]
[EventDate "2019.07.18"]
[EventType "swiss"]
[EventCountry "HUN"]
[SourceTitle "playchess.com"]
[Source "ChessBase"]
[SourceQuality "1"]
[TimeControl "1200+5"]

1. d4 {[%emt 0:00:01]} Nf6 {[%emt 0:00:01]} 2. c4 {[%emt 0:00:02]} e6 {[%emt 0:00:02]} 3. Nf3 {[%emt 0:00:03]} d5 {[%emt 0:00:01]} 4. Nc3 {[%emt 0:00:11]} Nbd7 {[%emt 0:00:02]} 5. cxd5 {[%emt 0:00:36]} exd5 {[%emt 0:00:03]} 6. Bg5 {[%emt 0:00:02]} c6 {[%emt 0:00:03]} 7. e3 {[%emt 0:00:10]} h6 {[%emt 0:00:01]} 8. Bh4 {[%emt 0:00:06]} g5 {[%emt 0:00:01]} 9. Bg3 {[%emt 0:00:00]} Nh5 {[%emt 0:00:01]} 10. Bd3 {[%emt 0:00:22]} Nxg3 {[%emt 0:00:02]} 11. hxg3 {[%emt 0:00:02]} Bg7 {[%emt 0:00:01]} 12. Qc2 {[%emt 0:00:18]} Nb6 {[%emt 0:00:19]} 13. Bf5 {[%emt 0:00:12]} Bxf5 {[%emt 0:00:15]} 14. Qxf5 {[%emt 0:00:02]} Qd7 {[%emt 0:00:03]} 15. Qxd7+ {[%emt 0:00:12]} Nxd7 {[%emt 0:00:12]} 16. g4 {[%emt 0:00:26]} O-O {[%emt 0:02:13]} 17. Ne2 {[%emt 0:02:16]} f5 {[%emt 0:01:08]} 18. gxf5 {[%emt 0:00:02]} Rxf5 {[%emt 0:00:02]} 19. Ng3 {[%emt 0:00:09]} Rf7 {[%emt 0:00:08]} 20. O-O {[%emt 0:00:19]} Rc8 {[%emt 0:00:51]} 21. Rac1 {[%emt 0:00:09]} Nb6 {[%emt 0:00:30]} 22. b3 {[%emt 0:00:22]} Kh7 {[%emt 0:01:04]} 23. Ne1 {[%emt 0:00:12]} Nd7 {[%emt 0:01:07]} 24. Nd3 {[%emt 0:00:02]} Kg6 {[%emt 0:00:19]} 25. f4 {[%emt 0:01:30]} Re8 {[%emt 0:03:27]} 26. Ne5+ {[%emt 0:00:10]} Nxe5 {[%emt 0:01:17]} 27. fxe5 {[%emt 0:00:01]} Rxf1+ {[%emt 0:00:21]} 28. Rxf1 {[%emt 0:00:07]} Rf8 {[%emt 0:00:01]} 29. Rc1 {[%emt 0:01:21]} h5 {[%emt 0:00:13]} 30. b4 {[%emt 0:00:39]} h4 {[%emt 0:00:27]} 31. Ne2 {[%emt 0:00:04]} Bh6 {[%emt 0:00:40]} 32. b5 {[%emt 0:00:37]} cxb5 {[%emt 0:00:49]} 33. Rc5 {[%emt 0:04:04]} g4 {[%emt 0:01:45]} 34. Nf4+ {[%emt 0:00:22]} Bxf4 {[%emt 0:00:01]} 35. exf4 {[%emt 0:00:01]} Rxf4 {[%emt 0:00:49]} 36. Rxd5 {[%emt 0:00:05]} g3 {[%emt 0:00:06]} 37. Rd6+ {[%emt 0:01:24]} Kf7 {[%emt 0:00:42]} 38. d5 {[%emt 0:00:24]} Rc4 {[%emt 0:00:46]} 39. Rf6+ {[%emt 0:00:26]} Ke8 {[%emt 0:00:17]} 40. Rf1 {[%emt 0:00:39]} Re4 {[%emt 0:00:17]} 41. e6 {[%emt 0:00:05]} Rd4 {[%emt 0:00:01]} 42. Re1 {[%emt 0:00:43]} Rxd5 {[%emt 0:00:03]} 43. Kf1 {[%emt 0:00:11]} Rf5+ {[%emt 0:00:06]} 44. Kg1 {[%emt 0:00:01]} Ke7 {[%emt 0:00:04]} 45. Re4 {[%emt 0:00:01]} Rc5 {[%emt 0:00:04]} 46. Kf1 {[%emt 0:00:09]} Rc1+ {[%emt 0:00:04]} 47. Ke2 {[%emt 0:00:01]} h3 {[%emt 0:00:01]} 0-1

[Event "HUN-ch Rapid 2019"]
[Site "Ajka"]
[Date "2019.07.20"]
[Round "9.14"]
[White "Jakab, Attila"]
[Black "Bodi, Tibor"]
[Result "1/2-1/2"]
[ECO "D35"]
[WhiteElo "2377"]
[BlackElo "2244"]
[Annotator "NA"]
[PlyCount "71"]
[EventDate "2019.07.18"]
[EventType "swiss"]
[EventCountry "HUN"]
[SourceTitle "playchess.com"]
[Source "ChessBase"]
[SourceQuality "1"]
[TimeControl "1200+5"]

1. d4 {[%emt 0:00:02]} Nf6 {[%emt 0:00:03]} 2. c4 {[%emt 0:00:03]} e6 {[%emt 0:00:00]} 3. Nc3 {[%emt 0:00:02]} d5 {[%emt 0:00:01]} 4. cxd5 {[%emt 0:00:04]} exd5 {[%emt 0:00:01]} 5. Bg5 {[%emt 0:00:03]} Be7 {[%emt 0:00:08]} 6. e3 {[%emt 0:00:03]} O-O {[%emt 0:00:06]} 7. Bd3 {[%emt 0:00:03]} h6 {[%emt 0:00:05]} 8. Bh4 {[%emt 0:00:03]} Nbd7 {[%emt 0:00:36]} 9. Nf3 {[%emt 0:00:11]} Re8 {[%emt 0:00:16]} 10. Qc2 {[%emt 0:00:07]} c6 {[%emt 0:00:08]} 11. O-O {[%emt 0:01:06]} Nh5 {[%emt 0:00:47]} 12. Bxe7 {[%emt 0:00:17]} Qxe7 {[%emt 0:00:13]} 13. Rab1 {[%emt 0:00:15]} Nhf6 {[%emt 0:01:17]} 14. b4 {[%emt 0:01:08]} a6 {[%emt 0:02:38]} 15. a4 {[%emt 0:00:13]} b5 {[%emt 0:00:27]} 16. Nd2 {[%emt 0:02:37]} Nb6 {[%emt 0:00:19]} 17. Nb3 {[%emt 0:00:14]} Qxb4 {[%emt 0:02:02]} 18. Nc5 {[%emt 0:00:32]} Qa5 {[%emt 0:00:08]} 19. Ra1 {[%emt 0:00:57]} Nxa4 {[%emt 0:01:00]} 20. N3xa4 {[%emt 0:00:08]} bxa4 {[%emt 0:00:02]} 21. Rxa4 {[%emt 0:00:11]} Qc7 {[%emt 0:00:18]} 22. Nxa6 {[%emt 0:01:06]} Bxa6 {[%emt 0:00:22]} 23. Rxa6 {[%emt 0:00:03]} Rxa6 {[%emt 0:00:20]} 24. Bxa6 {[%emt 0:00:01]} Qb6 {[%emt 0:01:37]} 25. Bd3 {[%emt 0:00:08]} Rb8 {[%emt 0:01:16]} 26. Rb1 {[%emt 0:00:30]} Qxb1+ {[%emt 0:00:12]} 27. Qxb1 {[%emt 0:00:02]} Rxb1+ {[%emt 0:00:01]} 28. Bxb1 {[%emt 0:00:02]} Kf8 {[%emt 0:00:02]} 29. f3 {[%emt 0:00:11]} Ke7 {[%emt 0:00:11]} 30. Kf2 {[%emt 0:00:02]} Nd7 {[%emt 0:00:22]} 31. f4 {[%emt 0:04:41]} Kd6 {[%emt 0:00:19]} 32. Kf3 {[%emt 0:00:06]} c5 {[%emt 0:00:27]} 33. dxc5+ {[%emt 0:00:02]} Kxc5 {[%emt 0:00:07]} 34. g4 {[%emt 0:00:54]} d4 {[%emt 0:00:25]} 35. exd4+ {[%emt 0:01:30]} Kxd4 {[%emt 0:00:03]} 36. h4 {[%emt 0:00:02]} 1/2-1/2

[Event "HUN-ch Rapid 2019"]
[Site "Ajka"]
[Date "2019.07.20"]
[Round "9.15"]
[White "Dankhazi, Andras"]
[Black "Kovacs, Marton"]
[Result "1/2-1/2"]
[ECO "D30"]
[WhiteElo "2277"]
[BlackElo "2147"]
[Annotator "NA"]
[PlyCount "217"]
[EventDate "2019.07.18"]
[EventType "swiss"]
[EventCountry "HUN"]
[SourceTitle "playchess.com"]
[Source "ChessBase"]
[SourceQuality "1"]
[TimeControl "1200+5"]

1. d4 {[%emt 0:00:03]} d5 {[%emt 0:00:02]} 2. c4 {[%emt 0:00:02]} e6 {[%emt 0:00:05]} 3. Nf3 {[%emt 0:00:01]} Nf6 {[%emt 0:00:01]} 4. g3 {[%emt 0:00:03]} c6 {[%emt 0:00:35]} 5. Bg2 {[%emt 0:00:03]} Bb4+ {[%emt 0:01:22]} 6. Bd2 {[%emt 0:00:03]} Bd6 {[%emt 0:00:23]} 7. Nc3 {[%emt 0:00:15]} O-O {[%emt 0:00:18]} 8. Bg5 {[%emt 0:00:04]} h6 {[%emt 0:00:16]} 9. Bxf6 {[%emt 0:00:12]} Qxf6 {[%emt 0:00:02]} 10. c5 {[%emt 0:00:49]} Bc7 {[%emt 0:00:13]} 11. e4 {[%emt 0:00:02]} dxe4 {[%emt 0:00:32]} 12. Nxe4 {[%emt 0:00:02]} Ba5+ {[%emt 0:01:56]} 13. Kf1 {[%emt 0:01:46]} Qe7 {[%emt 0:01:03]} 14. Ne5 {[%emt 0:01:01]} Bc7 {[%emt 0:00:44]} 15. Qc2 {[%emt 0:04:20]} Rd8 {[%emt 0:00:35]} 16. Rd1 {[%emt 0:00:06]} Na6 {[%emt 0:03:12]} 17. f4 {[%emt 0:03:10]} Nb4 {[%emt 0:01:15]} 18. Qd2 {[%emt 0:01:59]} Nd5 {[%emt 0:01:45]} 19. Nc4 {[%emt 0:03:49]} b6 {[%emt 0:02:01]} 20. Ne5 {[%emt 0:02:15]} Bb7 {[%emt 0:01:30]} 21. b4 {[%emt 0:01:15]} f6 {[%emt 0:00:32]} 22. Nc4 {[%emt 0:00:07]} Ba6 {[%emt 0:00:03]} 23. Rc1 {[%emt 0:00:03]} Rab8 {[%emt 0:01:01]} 24. Kf2 {[%emt 0:00:10]} f5 {[%emt 0:00:33]} 25. Ned6 {[%emt 0:00:06]} bxc5 {[%emt 0:00:48]} 26. bxc5 {[%emt 0:00:03]} Bxc4 {[%emt 0:00:31]} 27. Nxc4 {[%emt 0:00:01]} Nxf4 {[%emt 0:00:18]} 28. Bxc6 {[%emt 0:00:21]} Nd5 {[%emt 0:00:20]} 29. Bxd5 {[%emt 0:00:03]} Rxd5 {[%emt 0:00:04]} 30. Qe3 {[%emt 0:00:05]} f4 {[%emt 0:00:17]} 31. Qe4 {[%emt 0:00:06]} fxg3+ {[%emt 0:00:03]} 32. hxg3 {[%emt 0:00:01]} Rf8+ {[%emt 0:00:05]} 33. Kg2 {[%emt 0:00:01]} Qd7 {[%emt 0:00:06]} 34. Rhe1 {[%emt 0:00:06]} Rxd4 {[%emt 0:00:03]} 35. Qxe6+ {[%emt 0:00:01]} Qxe6 {[%emt 0:00:01]} 36. Rxe6 {[%emt 0:00:01]} Rd3 {[%emt 0:00:04]} 37. Re3 {[%emt 0:00:01]} Rd4 {[%emt 0:00:09]} 38. Rc2 {[%emt 0:00:08]} Rfd8 {[%emt 0:00:10]} 39. Kf3 {[%emt 0:00:09]} g5 {[%emt 0:00:04]} 40. Ke2 {[%emt 0:00:03]} Rg4 {[%emt 0:00:05]} 41. Rcc3 {[%emt 0:00:03]} Rdd4 {[%emt 0:00:03]} 42. Nd2 {[%emt 0:00:06]} Ra4 {[%emt 0:00:01]} 43. Nb3 {[%emt 0:00:12]} Rxa2+ {[%emt 0:00:03]} 44. Kf1 {[%emt 0:00:11]} Rb4 {[%emt 0:00:05]} 45. Re2 {[%emt 0:00:02]} Rxe2 46. Kxe2 {[%emt 0:00:01]} Rg4 {[%emt 0:00:08]} 47. Kf2 {[%emt 0:00:02]} Rb4 {[%emt 0:00:06]} 48. c6 {[%emt 0:00:03]} h5 {[%emt 0:00:06]} 49. Nc5 {[%emt 0:00:10]} h4 {[%emt 0:00:16]} 50. gxh4 {[%emt 0:00:04]} gxh4 51. Ne6 {[%emt 0:00:07]} Bb6+ {[%emt 0:00:06]} 52. Kg2 {[%emt 0:00:04]} Re4 {[%emt 0:00:09]} 53. c7 {[%emt 0:00:04]} Bxc7 {[%emt 0:00:01]} 54. Nxc7 {[%emt 0:00:01]} a5 {[%emt 0:00:05]} 55. Nd5 {[%emt 0:00:02]} Kf7 {[%emt 0:00:03]} 56. Ra3 {[%emt 0:00:04]} a4 {[%emt 0:00:02]} 57. Nb6 {[%emt 0:00:01]} Rg4+ {[%emt 0:00:07]} 58. Kh2 {[%emt 0:00:01]} Rb4 {[%emt 0:00:10]} 59. Nxa4 {[%emt 0:00:01]} Kg6 {[%emt 0:00:03]} 60. Nc5 {[%emt 0:00:01]} Kg5 {[%emt 0:00:05]} 61. Ra2 {[%emt 0:00:07]} Kg4 {[%emt 0:00:06]} 62. Rg2+ {[%emt 0:00:02]} Kh5 {[%emt 0:00:03]} 63. Nd3 {[%emt 0:00:09]} Rb3 {[%emt 0:00:04]} 64. Nf4+ {[%emt 0:00:01]} Kh6 {[%emt 0:00:02]} 65. Rg6+ {[%emt 0:00:01]} Kh7 {[%emt 0:00:01]} 66. Rg4 {[%emt 0:00:02]} h3 {[%emt 0:00:09]} 67. Nxh3 {[%emt 0:00:02]} Rb2+ {[%emt 0:00:02]} 68. Kg3 {[%emt 0:00:01]} Rb3+ {[%emt 0:00:01]} 69. Kh4 {[%emt 0:00:01]} Rb5 {[%emt 0:00:04]} 70. Ng1 {[%emt 0:00:11]} Kh6 {[%emt 0:00:06]} 71. Nf3 {[%emt 0:00:01]} Rc5 {[%emt 0:00:05]} 72. Ng5 {[%emt 0:00:05]} Rc1 {[%emt 0:00:12]} 73. Nf7+ {[%emt 0:00:01]} Kh7 {[%emt 0:00:01]} 74. Ne5 {[%emt 0:00:02]} Rc5 {[%emt 0:00:08]} 75. Re4 {[%emt 0:00:01]} Kg7 {[%emt 0:00:05]} 76. Kg5 {[%emt 0:00:01]} Ra5 {[%emt 0:00:04]} 77. Kf5 {[%emt 0:00:01]} Rb5 {[%emt 0:00:01]} 78. Ra4 {[%emt 0:00:05]} Rb1 {[%emt 0:00:08]} 79. Ra7+ {[%emt 0:00:08]} Kf8 {[%emt 0:00:14]} 80. Rc7 {[%emt 0:00:01]} Rf1+ {[%emt 0:00:05]} 81. Ke6 {[%emt 0:00:01]} Re1 {[%emt 0:00:04]} 82. Rf7+ {[%emt 0:00:32]} Ke8 {[%emt 0:00:04]} 83. Rh7 {[%emt 0:00:13]} Kf8 {[%emt 0:00:12]} 84. Ra7 {[%emt 0:00:38]} Kg8 {[%emt 0:00:04]} 85. Kf6 {[%emt 0:00:05]} Rf1+ {[%emt 0:00:02]} 86. Kg5 {[%emt 0:00:01]} Rg1+ {[%emt 0:00:01]} 87. Ng4 {[%emt 0:00:01]} Kf8 {[%emt 0:00:05]} 88. Ra4 {[%emt 0:00:06]} Ke7 {[%emt 0:00:02]} 89. Re4+ {[%emt 0:00:03]} Kd6 {[%emt 0:00:03]} 90. Rd4+ {[%emt 0:00:06]} Kc5 {[%emt 0:00:01]} 91. Rd8 {[%emt 0:00:01]} Kc6 {[%emt 0:00:03]} 92. Kf5 {[%emt 0:00:01]} Rf1+ {[%emt 0:00:02]} 93. Ke6 {[%emt 0:00:01]} Re1+ {[%emt 0:00:01]} 94. Ne5+ {[%emt 0:00:01]} Kc5 {[%emt 0:00:06]} 95. Rd5+ {[%emt 0:00:05]} Kb4 {[%emt 0:00:06]} 96. Kd6 {[%emt 0:00:01]} Rh1 {[%emt 0:00:09]} 97. Nc6+ {[%emt 0:00:04]} Kc4 {[%emt 0:00:03]} 98. Rd4+ {[%emt 0:00:05]} Kc3 {[%emt 0:00:02]} 99. Rg4 {[%emt 0:00:04]} Rh6+ {[%emt 0:00:02]} 100. Kd5 {[%emt 0:00:01]} Rh5+ {[%emt 0:00:01]} 101. Ne5 {[%emt 0:00:01]} Kd2 {[%emt 0:00:09]} 102. Kd4 {[%emt 0:00:01]} Rh8 {[%emt 0:00:04]} 103. Rg2+ {[%emt 0:00:02]} Kd1 {[%emt 0:00:07]} 104. Ke3 {[%emt 0:00:10]} Re8 {[%emt 0:00:10]} 105. Ke4 {[%emt 0:00:04]} Rh8 {[%emt 0:00:06]} 106. Nf3 {[%emt 0:00:01]} Re8+ {[%emt 0:00:02]} 107. Kd3 {[%emt 0:00:01]} Rd8+ {[%emt 0:00:01]} 108. Nd4 {[%emt 0:00:02]} Ke1 {[%emt 0:00:08]} 109. Ke4 1/2-1/2

[Event "HUN-ch Rapid 2019"]
[Site "Ajka"]
[Date "2019.07.20"]
[Round "9.16"]
[White "Haszon, David"]
[Black "Hoang, Thanh Trang"]
[Result "0-1"]
[ECO "A80"]
[WhiteElo "2279"]
[BlackElo "2414"]
[Annotator "NA"]
[PlyCount "50"]
[EventDate "2019.07.18"]
[EventType "swiss"]
[EventCountry "HUN"]
[SourceTitle "playchess.com"]
[Source "ChessBase"]
[SourceQuality "1"]
[TimeControl "1200+5"]

1. d4 {[%emt 0:00:04]} f5 {[%emt 0:00:04]} 2. Nc3 {[%emt 0:00:07]} Nf6 {[%emt 0:00:05]} 3. Bg5 {[%emt 0:00:18]} d5 {[%emt 0:00:03]} 4. e3 {[%emt 0:00:10]} e6 {[%emt 0:00:43]} 5. Nf3 {[%emt 0:00:35]} h6 {[%emt 0:00:32]} 6. Bxf6 {[%emt 0:00:22]} Qxf6 {[%emt 0:00:07]} 7. Ne5 {[%emt 0:00:49]} g6 {[%emt 0:00:32]} 8. Nb5 {[%emt 0:00:41]} Rh7 {[%emt 0:01:01]} 9. c4 {[%emt 0:01:12]} c6 {[%emt 0:00:09]} 10. Nc3 {[%emt 0:00:08]} Nd7 {[%emt 0:00:41]} 11. Nxd7 {[%emt 0:00:56]} Bxd7 {[%emt 0:00:08]} 12. Qb3 {[%emt 0:00:21]} O-O-O {[%emt 0:01:11]} 13. a4 {[%emt 0:00:49]} f4 {[%emt 0:01:24]} 14. Be2 {[%emt 0:00:34]} fxe3 {[%emt 0:00:21]} 15. fxe3 {[%emt 0:00:10]} e5 {[%emt 0:00:24]} 16. O-O-O {[%emt 0:03:01]} Qg5 {[%emt 0:04:19]} 17. cxd5 {[%emt 0:03:42]} Qxe3+ {[%emt 0:00:11]} 18. Kb1 {[%emt 0:00:12]} exd4 {[%emt 0:00:19]} 19. dxc6 {[%emt 0:00:13]} Bxc6 {[%emt 0:01:50]} 20. Bg4+ {[%emt 0:00:06]} Kb8 {[%emt 0:00:28]} 21. Rhe1 {[%emt 0:00:57]} Qg5 {[%emt 0:00:10]} 22. Be2 {[%emt 0:03:46]} dxc3 {[%emt 0:00:18]} 23. Bb5 {[%emt 0:00:30]} Bxb5 {[%emt 0:01:06]} 24. Rxd8+ {[%emt 0:00:25]} Qxd8 {[%emt 0:00:04]} 25. Qxb5 {[%emt 0:00:06]} Re7 {[%emt 0:00:08]} 0-1

[Event "HUN-ch Rapid 2019"]
[Site "Ajka"]
[Date "2019.07.20"]
[Round "9.17"]
[White "Gelle, Istvan"]
[Black "Csiszar, Csaba"]
[Result "1-0"]
[ECO "A45"]
[WhiteElo "2325"]
[BlackElo "2432"]
[Annotator "NA"]
[PlyCount "83"]
[EventDate "2019.07.18"]
[EventType "swiss"]
[EventCountry "HUN"]
[SourceTitle "playchess.com"]
[Source "ChessBase"]
[SourceQuality "1"]
[TimeControl "1200+5"]

1. d4 {[%emt 0:00:01]} Nf6 {[%emt 0:00:01]} 2. Bf4 {[%emt 0:00:02]} e6 {[%emt 0:00:03]} 3. e3 {[%emt 0:00:02]} c5 {[%emt 0:00:03]} 4. c3 {[%emt 0:00:02]} b6 {[%emt 0:00:05]} 5. Nd2 {[%emt 0:00:03]} cxd4 {[%emt 0:00:20]} 6. exd4 {[%emt 0:00:03]} a6 {[%emt 0:01:01]} 7. a4 {[%emt 0:00:13]} Bb7 {[%emt 0:00:10]} 8. Ngf3 {[%emt 0:00:04]} Be7 {[%emt 0:00:06]} 9. h3 {[%emt 0:00:02]} d6 {[%emt 0:00:03]} 10. Be2 {[%emt 0:00:20]} O-O {[%emt 0:00:06]} 11. O-O {[%emt 0:00:03]} Nbd7 {[%emt 0:00:01]} 12. Bh2 {[%emt 0:00:06]} Re8 {[%emt 0:00:08]} 13. Re1 {[%emt 0:00:23]} Qc7 {[%emt 0:00:02]} 14. Qb3 {[%emt 0:00:23]} Rac8 {[%emt 0:00:33]} 15. c4 {[%emt 0:01:21]} a5 {[%emt 0:00:03]} 16. Rac1 {[%emt 0:01:22]} Bf8 {[%emt 0:01:10]} 17. Nb1 {[%emt 0:00:41]} Ba6 {[%emt 0:00:46]} 18. Na3 {[%emt 0:00:20]} Qb8 {[%emt 0:03:07]} 19. Nb5 {[%emt 0:00:43]} e5 {[%emt 0:00:08]} 20. c5 {[%emt 0:03:29]} bxc5 {[%emt 0:00:13]} 21. Bc4 {[%emt 0:00:26]} d5 {[%emt 0:00:31]} 22. Bxd5 {[%emt 0:01:33]} Nxd5 {[%emt 0:00:01]} 23. Qxd5 {[%emt 0:00:01]} Bxb5 {[%emt 0:03:54]} 24. axb5 {[%emt 0:00:38]} Qxb5 {[%emt 0:00:19]} 25. dxe5 {[%emt 0:00:54]} Nb6 {[%emt 0:00:10]} 26. Qa2 {[%emt 0:00:48]} c4 {[%emt 0:00:57]} 27. Red1 {[%emt 0:02:16]} Bb4 {[%emt 0:00:16]} 28. Nd4 {[%emt 0:00:33]} Qd7 {[%emt 0:00:39]} 29. Kh1 {[%emt 0:00:38]} Red8 {[%emt 0:00:15]} 30. Qb1 {[%emt 0:00:23]} g6 {[%emt 0:00:50]} 31. f4 {[%emt 0:00:14]} Nd5 {[%emt 0:00:20]} 32. Qe4 {[%emt 0:00:37]} Ne7 {[%emt 0:00:41]} 33. e6 {[%emt 0:00:33]} fxe6 {[%emt 0:01:40]} 34. Nxe6 {[%emt 0:00:06]} Qxd1+ {[%emt 0:00:04]} 35. Rxd1 {[%emt 0:00:01]} Rxd1+ {[%emt 0:00:01]} 36. Bg1 {[%emt 0:00:01]} Nf5 {[%emt 0:00:32]} 37. Qe5 {[%emt 0:01:46]} Re1 {[%emt 0:02:44]} 38. Qd5 {[%emt 0:00:49]} Ne7 {[%emt 0:00:35]} 39. Qd7 {[%emt 0:00:22]} h6 {[%emt 0:00:20]} 40. Kh2 {[%emt 0:00:02]} Kf7 {[%emt 0:00:07]} 41. Nd8+ {[%emt 0:00:11]} Kf8 {[%emt 0:00:09]} 42. Bd4 {[%emt 0:00:15]} 1-0